[Event "Titled Tuesday Blitz January 03 Late 2023"]
[White "Makarian, Rudik"]
[Black "Jaracz, Pawel"]
[WhiteFideId "44105681"]
[BlackFideId "1102222"]
[WhiteElo "2545"]
[BlackElo "2467"]
[Result "1-0"]
[Round "03"]
[TimeControl "180+2"]
[Date "2023.01.03"]
[WhiteClock "0:00:28"]
[BlackClock "0:00:02"]

1. d4 {[%clk 0:03:00]}  d5 {[%clk 0:02:59]} 2. c4 {[%clk 0:02:59]}  c6 {[%clk 0:02:59]} 3. Nf3 {[%clk 0:02:59]}  Nf6 {[%clk 0:02:59]} 4. Nc3 {[%clk 0:02:59]}  dxc4 {[%clk 0:02:59]} 5. a4 {[%clk 0:02:58]}  Bf5 {[%clk 0:02:59]} 6. Ne5 {[%clk 0:02:58]}  Nbd7 {[%clk 0:02:57]} 7. Nxc4 {[%clk 0:02:57]}  Nb6 {[%clk 0:02:57]} 8. Ne3 {[%clk 0:02:54]}  Bg6 {[%clk 0:02:54]} 9. a5 {[%clk 0:02:54]}  Nbd7 {[%clk 0:02:50]} 10. a6 {[%clk 0:02:50]}  bxa6 {[%clk 0:02:30]} 11. Rxa6 {[%clk 0:02:49]}  Qc8 {[%clk 0:02:29]} 12. Ra1 {[%clk 0:02:44]}  e6 {[%clk 0:02:28]} 13. g3 {[%clk 0:02:44]}  Nd5 {[%clk 0:02:25]} 14. Bg2 {[%clk 0:02:44]}  N7b6 {[%clk 0:02:13]} 15. O-O {[%clk 0:02:44]}  Be7 {[%clk 0:02:13]} 16. Ng4 {[%clk 0:02:35]}  Bh5 {[%clk 0:02:00]} 17. Ne5 {[%clk 0:02:34]}  f6 {[%clk 0:02:00]} 18. Nd3 {[%clk 0:02:33]}  O-O {[%clk 0:01:56]} 19. Qe1 {[%clk 0:02:31]}  Bf7 {[%clk 0:01:53]} 20. e4 {[%clk 0:02:31]}  Nb4 {[%clk 0:01:50]} 21. Nxb4 {[%clk 0:02:16]}  Bxb4 {[%clk 0:01:49]} 22. Bf4 {[%clk 0:02:16]}  Nc4 {[%clk 0:01:45]} 23. Qc1 {[%clk 0:02:15]}  e5 {[%clk 0:01:45]} 24. dxe5 {[%clk 0:02:03]}  fxe5 {[%clk 0:01:42]} 25. Be3 {[%clk 0:02:01]}  Qb7 {[%clk 0:01:12]} 26. Na4 {[%clk 0:01:59]}  Qe7 {[%clk 0:01:11]} 27. b3 {[%clk 0:01:53]}  Nxe3 {[%clk 0:01:11]} 28. Qxe3 {[%clk 0:01:54]}  Rfb8 {[%clk 0:01:03]} 29. Rfc1 {[%clk 0:01:44]}  Ba5 {[%clk 0:00:53]} 30. Nc5 {[%clk 0:01:16]}  Bb6 {[%clk 0:00:51]} 31. Bf1 {[%clk 0:01:17]}  a5 {[%clk 0:00:49]} 32. Bc4 {[%clk 0:01:09]}  Rf8 {[%clk 0:00:42]} 33. Ra2 {[%clk 0:00:59]}  Kh8 {[%clk 0:00:41]} 34. Bxf7 {[%clk 0:00:58]}  Rxf7 {[%clk 0:00:39]} 35. b4 {[%clk 0:00:46]}  Rff8 {[%clk 0:00:34]} 36. bxa5 {[%clk 0:00:41]}  Rxa5 {[%clk 0:00:34]} 37. Rxa5 {[%clk 0:00:42]}  Bxa5 {[%clk 0:00:35]} 38. Nd3 {[%clk 0:00:40]}  Qd6 {[%clk 0:00:20]} 39. Qc5 {[%clk 0:00:38]}  Qxc5 {[%clk 0:00:15]} 40. Rxc5 {[%clk 0:00:38]}  Bb6 {[%clk 0:00:15]} 41. Rxc6 {[%clk 0:00:36]}  Bd4 {[%clk 0:00:15]} 42. Kg2 {[%clk 0:00:36]}  Re8 {[%clk 0:00:15]} 43. Rc7 {[%clk 0:00:34]}  h5 {[%clk 0:00:15]} 44. h4 {[%clk 0:00:34]}  Kh7 {[%clk 0:00:15]} 45. Rd7 {[%clk 0:00:34]}  Re6 {[%clk 0:00:15]} 46. Ne1 {[%clk 0:00:32]}  Ra6 {[%clk 0:00:05]} 47. Nf3 {[%clk 0:00:33]}  Ra4 {[%clk 0:00:06]} 48. Rd5 {[%clk 0:00:31]}  Bc3 {[%clk 0:00:02]} 49. Nxe5 {[%clk 0:00:26]}  Rxe4 {[%clk 0:00:01]} 50. Nf3 {[%clk 0:00:26]}  Bf6 {[%clk 0:00:01]} 51. Rxh5+ {[%clk 0:00:26]}  Kg6 {[%clk 0:00:02]} 52. Rd5 {[%clk 0:00:27]}  Rc4 {[%clk 0:00:02]} 53. Rd2 {[%clk 0:00:27]}  Kf7 {[%clk 0:00:02]} 54. Re2 {[%clk 0:00:27]}  Kg6 {[%clk 0:00:02]} 55. Ne5+ {[%clk 0:00:28]} 1-0


[Site "https://www.chess.com"]

[Event "Titled Tuesday Blitz January 03 Late 2023"]
[White "Garcia Ramos, Daniel"]
[Black "Ibarra Jerez, Jose Carlos"]
[WhiteFideId "32010311"]
[BlackFideId "2226332"]
[WhiteElo "2442"]
[BlackElo "2563"]
[Result "0-1"]
[Round "03"]
[TimeControl "180+2"]
[Date "2023.01.03"]
[WhiteClock "0:00:02"]
[BlackClock "0:00:07"]

1. c4 {[%clk 0:03:00]}  e5 {[%clk 0:02:59]} 2. g3 {[%clk 0:02:58]}  Nf6 {[%clk 0:02:56]} 3. Bg2 {[%clk 0:02:58]}  c6 {[%clk 0:02:56]} 4. Nf3 {[%clk 0:02:56]}  e4 {[%clk 0:02:55]} 5. Nd4 {[%clk 0:02:56]}  Qb6 {[%clk 0:02:55]} 6. Nc2 {[%clk 0:02:55]}  d5 {[%clk 0:02:50]} 7. cxd5 {[%clk 0:02:49]}  cxd5 {[%clk 0:02:51]} 8. O-O {[%clk 0:02:49]}  Nc6 {[%clk 0:02:51]} 9. d3 {[%clk 0:02:49]}  Be7 {[%clk 0:02:51]} 10. Nc3 {[%clk 0:02:47]}  O-O {[%clk 0:02:51]} 11. dxe4 {[%clk 0:02:39]}  dxe4 {[%clk 0:02:51]} 12. Nxe4 {[%clk 0:02:37]}  Nxe4 {[%clk 0:02:48]} 13. Bxe4 {[%clk 0:02:37]}  Rd8 {[%clk 0:02:40]} 14. Bd2 {[%clk 0:02:31]}  Qxb2 {[%clk 0:02:16]} 15. Qc1 {[%clk 0:02:19]}  Qe5 {[%clk 0:02:02]} 16. Bf3 {[%clk 0:01:59]}  Bh3 {[%clk 0:02:02]} 17. Re1 {[%clk 0:01:58]}  Rac8 {[%clk 0:02:00]} 18. Bf4 {[%clk 0:01:54]}  Qc3 {[%clk 0:01:51]} 19. Rb1 {[%clk 0:01:12]}  Bf5 {[%clk 0:01:32]} 20. Ne3 {[%clk 0:00:54]}  Qxc1 {[%clk 0:01:13]} 21. Rbxc1 {[%clk 0:00:54]}  Be6 {[%clk 0:01:09]} 22. h4 {[%clk 0:00:49]}  Nd4 {[%clk 0:01:06]} 23. Rxc8 {[%clk 0:00:39]}  Nxf3+ {[%clk 0:01:06]} 24. exf3 {[%clk 0:00:40]}  Rxc8 {[%clk 0:01:07]} 25. Nf5 {[%clk 0:00:37]}  Bb4 {[%clk 0:01:00]} 26. Rb1 {[%clk 0:00:35]}  Bf8 {[%clk 0:00:48]} 27. Nd6 {[%clk 0:00:33]}  Rc6 {[%clk 0:00:44]} 28. Rxb7 {[%clk 0:00:30]}  Bxa2 {[%clk 0:00:34]} 29. Rxa7 {[%clk 0:00:26]}  Bd5 {[%clk 0:00:35]} 30. Ne4 {[%clk 0:00:12]}  h6 {[%clk 0:00:34]} 31. Kg2 {[%clk 0:00:11]}  f5 {[%clk 0:00:33]} 32. Nd2 {[%clk 0:00:09]}  Rc3 {[%clk 0:00:32]} 33. Rd7 {[%clk 0:00:08]}  Rd3 {[%clk 0:00:32]} 34. Rc7 {[%clk 0:00:05]}  Bb4 {[%clk 0:00:29]} 35. Rc8+ {[%clk 0:00:05]}  Kf7 {[%clk 0:00:29]} 36. Nc4 {[%clk 0:00:05]}  Bxf3+ {[%clk 0:00:28]} 37. Kh2 {[%clk 0:00:05]}  Bc3 {[%clk 0:00:22]} 38. Ne3 {[%clk 0:00:02]}  g6 {[%clk 0:00:19]} 39. h5 {[%clk 0:00:02]}  g5 {[%clk 0:00:18]} 40. Rc7+ {[%clk 0:00:01]}  Ke8 {[%clk 0:00:18]} 41. Rc8+ {[%clk 0:00:01]}  Kd7 {[%clk 0:00:18]} 42. Rc7+ {[%clk 0:00:02]}  Kd8 {[%clk 0:00:18]} 43. Rxc3 {[%clk 0:00:03]}  Rxc3 {[%clk 0:00:17]} 44. Be5 {[%clk 0:00:03]}  Rc1 {[%clk 0:00:17]} 45. Ng2 {[%clk 0:00:02]}  Rc2 {[%clk 0:00:14]} 46. Bd4 {[%clk 0:00:03]}  Bxh5 {[%clk 0:00:12]} 47. Bg7 {[%clk 0:00:02]}  Rxf2 {[%clk 0:00:11]} 48. Kg1 {[%clk 0:00:01]}  Rd2 {[%clk 0:00:09]} 49. Bxh6 {[%clk 0:00:02]}  Rd1+ {[%clk 0:00:09]} 50. Kh2 {[%clk 0:00:02]}  g4 {[%clk 0:00:09]} 51. Bg5+ {[%clk 0:00:02]}  Kd7 {[%clk 0:00:09]} 52. Ne3 {[%clk 0:00:03]}  Rd2+ {[%clk 0:00:08]} 53. Kg1 {[%clk 0:00:03]}  Bg6 {[%clk 0:00:08]} 54. Kf1 {[%clk 0:00:01]}  Ra2 {[%clk 0:00:07]} 55. Ke1 {[%clk 0:00:01]}  Ke6 {[%clk 0:00:07]} 56. Bf4 {[%clk 0:00:02]}  Be8 {[%clk 0:00:07]} 57. Nc4 {[%clk 0:00:02]}  Bb5 {[%clk 0:00:07]} 58. Nd2 {[%clk 0:00:02]}  Ra3 {[%clk 0:00:06]} 59. Kf2 {[%clk 0:00:02]}  Bc6 {[%clk 0:00:06]} 60. Ke2 {[%clk 0:00:02]}  Bd5 {[%clk 0:00:06]} 61. Kf2 {[%clk 0:00:03]}  Kd7 {[%clk 0:00:06]} 62. Ke2 {[%clk 0:00:03]}  Kc6 {[%clk 0:00:07]} 63. Nb1 {[%clk 0:00:03]}  Rb3 {[%clk 0:00:05]} 64. Nd2 {[%clk 0:00:03]}  Ra3 {[%clk 0:00:06]} 65. Nb1 {[%clk 0:00:04]}  Ra8 {[%clk 0:00:06]} 66. Nc3 {[%clk 0:00:03]}  Re8+ {[%clk 0:00:06]} 67. Kd3 {[%clk 0:00:03]}  Bf3 {[%clk 0:00:06]} 68. Kd4 {[%clk 0:00:03]}  Re1 {[%clk 0:00:06]} 69. Kd3 {[%clk 0:00:03]}  Kc5 {[%clk 0:00:05]} 70. Bd2 {[%clk 0:00:03]}  Re8 {[%clk 0:00:06]} 71. Be3+ {[%clk 0:00:03]}  Kc6 {[%clk 0:00:06]} 72. Bf4 {[%clk 0:00:04]}  Rd8+ {[%clk 0:00:06]} 73. Kc4 {[%clk 0:00:04]}  Bg2 {[%clk 0:00:05]} 74. Be3 {[%clk 0:00:04]}  Bf1+ {[%clk 0:00:06]} 75. Kb4 {[%clk 0:00:04]}  Rd3 {[%clk 0:00:06]} 76. Bf4 {[%clk 0:00:04]}  Rd4+ {[%clk 0:00:07]} 77. Kb3 {[%clk 0:00:05]}  Rxf4 {[%clk 0:00:07]} 78. gxf4 {[%clk 0:00:05]}  g3 {[%clk 0:00:07]} 79. Ne2 {[%clk 0:00:02]}  Bxe2 {[%clk 0:00:07]} 0-1


[Site "https://www.chess.com"]

[Event "Titled Tuesday Blitz January 03 Late 2023"]
[White "Papp, Levente"]
[Black "Remizov, Yaroslav"]
[WhiteFideId "751243"]
[BlackFideId "34134015"]
[WhiteElo "2353"]
[BlackElo "2421"]
[Result "0-1"]
[Round "03"]
[TimeControl "180+2"]
[Date "2023.01.03"]
[WhiteClock "0:00:05"]
[BlackClock "0:00:11"]

1. c4 {[%clk 0:03:00]}  Nf6 {[%clk 0:02:57]} 2. Nc3 {[%clk 0:03:00]}  e6 {[%clk 0:02:56]} 3. e4 {[%clk 0:03:00]}  d6 {[%clk 0:02:56]} 4. g3 {[%clk 0:02:57]}  c5 {[%clk 0:02:55]} 5. Bg2 {[%clk 0:02:57]}  Nc6 {[%clk 0:02:55]} 6. Nge2 {[%clk 0:02:58]}  Be7 {[%clk 0:02:53]} 7. O-O {[%clk 0:02:58]}  O-O {[%clk 0:02:54]} 8. d3 {[%clk 0:02:58]}  Rb8 {[%clk 0:02:53]} 9. Rb1 {[%clk 0:02:58]}  a6 {[%clk 0:02:53]} 10. a3 {[%clk 0:02:59]}  b5 {[%clk 0:02:53]} 11. cxb5 {[%clk 0:03:00]}  axb5 {[%clk 0:02:53]} 12. b4 {[%clk 0:03:01]}  cxb4 {[%clk 0:02:41]} 13. axb4 {[%clk 0:03:02]}  d5 {[%clk 0:02:33]} 14. Bf4 {[%clk 0:03:01]}  e5 {[%clk 0:02:06]} 15. exd5 {[%clk 0:02:49]}  exf4 {[%clk 0:01:56]} 16. dxc6 {[%clk 0:02:48]}  Bg4 {[%clk 0:01:57]} 17. gxf4 {[%clk 0:02:29]}  Bd6 {[%clk 0:01:46]} 18. Qd2 {[%clk 0:02:23]}  Nh5 {[%clk 0:01:39]} 19. f3 {[%clk 0:01:17]}  Bf5 {[%clk 0:01:27]} 20. Nd5 {[%clk 0:00:54]}  Bc5+ {[%clk 0:01:15]} 21. bxc5 {[%clk 0:00:45]}  Qxd5 {[%clk 0:01:15]} 22. Rbc1 {[%clk 0:00:28]}  Qxd3 {[%clk 0:00:56]} 23. Rfd1 {[%clk 0:00:17]}  Qxd2 {[%clk 0:00:43]} 24. Rxd2 {[%clk 0:00:18]}  Rfc8 {[%clk 0:00:42]} 25. Nd4 {[%clk 0:00:18]}  g6 {[%clk 0:00:41]} 26. Nxf5 {[%clk 0:00:18]}  gxf5 {[%clk 0:00:41]} 27. Bh3 {[%clk 0:00:13]}  Rxc6 {[%clk 0:00:34]} 28. Bxf5 {[%clk 0:00:13]}  Nxf4 {[%clk 0:00:32]} 29. Be4 {[%clk 0:00:14]}  Rc7 {[%clk 0:00:27]} 30. c6 {[%clk 0:00:14]}  b4 {[%clk 0:00:27]} 31. Rb1 {[%clk 0:00:10]}  f5 {[%clk 0:00:22]} 32. Bxf5 {[%clk 0:00:08]}  Rxc6 {[%clk 0:00:22]} 33. Be4 {[%clk 0:00:07]}  Rc3 {[%clk 0:00:21]} 34. Kh1 {[%clk 0:00:06]}  b3 {[%clk 0:00:20]} 35. Rg1+ {[%clk 0:00:05]}  Kf8 {[%clk 0:00:19]} 36. Rb2 {[%clk 0:00:04]}  Rb6 {[%clk 0:00:15]} 37. Bxh7 {[%clk 0:00:04]}  Rxf3 {[%clk 0:00:14]} 38. Be4 {[%clk 0:00:04]}  Re3 {[%clk 0:00:14]} 39. Bg2 {[%clk 0:00:03]}  Nd3 {[%clk 0:00:15]} 40. Rd2 {[%clk 0:00:03]}  b2 {[%clk 0:00:14]} 41. Rf1+ {[%clk 0:00:03]}  Ke7 {[%clk 0:00:14]} 42. Rb1 {[%clk 0:00:03]}  Re1+ {[%clk 0:00:15]} 43. Rxe1+ {[%clk 0:00:04]}  Nxe1 {[%clk 0:00:15]} 44. Be4 {[%clk 0:00:03]}  b1=Q {[%clk 0:00:12]} 45. Bxb1 {[%clk 0:00:03]}  Rxb1 {[%clk 0:00:12]} 46. Re2+ {[%clk 0:00:04]}  Kf6 {[%clk 0:00:13]} 47. Kg1 {[%clk 0:00:04]}  Nd3+ {[%clk 0:00:11]} 48. Kg2 {[%clk 0:00:05]}  Nf4+ {[%clk 0:00:11]} 0-1


[Site "https://www.chess.com"]

[Event "Titled Tuesday Blitz January 03 Late 2023"]
[White "Holt, Conrad"]
[Black "Omelja, Artem"]
[WhiteFideId "2034387"]
[BlackFideId "14119846"]
[WhiteElo "2540"]
[BlackElo "2446"]
[Result "1-0"]
[Round "03"]
[TimeControl "180+2"]
[Date "2023.01.03"]
[WhiteClock "0:02:21"]
[BlackClock "0:01:15"]

1. d4 {[%clk 0:03:00]}  d5 {[%clk 0:02:59]} 2. c4 {[%clk 0:03:01]}  e6 {[%clk 0:02:58]} 3. Nc3 {[%clk 0:03:01]}  c6 {[%clk 0:02:56]} 4. e3 {[%clk 0:03:00]}  Nf6 {[%clk 0:02:56]} 5. Bd3 {[%clk 0:03:00]}  Nbd7 {[%clk 0:02:55]} 6. e4 {[%clk 0:03:00]}  dxe4 {[%clk 0:02:49]} 7. Nxe4 {[%clk 0:03:00]}  Nxe4 {[%clk 0:02:50]} 8. Bxe4 {[%clk 0:03:01]}  Nf6 {[%clk 0:02:51]} 9. Bc2 {[%clk 0:03:01]}  b6 {[%clk 0:02:49]} 10. Nf3 {[%clk 0:03:00]}  Bb7 {[%clk 0:02:50]} 11. O-O {[%clk 0:02:58]}  c5 {[%clk 0:02:50]} 12. Ba4+ {[%clk 0:02:56]}  Ke7 {[%clk 0:02:37]} 13. d5 {[%clk 0:02:56]}  a6 {[%clk 0:02:28]} 14. Bf4 {[%clk 0:02:51]}  exd5 {[%clk 0:02:25]} 15. Re1+ {[%clk 0:02:49]}  Ne4 {[%clk 0:02:25]} 16. Bc2 {[%clk 0:02:45]}  h6 {[%clk 0:02:12]} 17. cxd5 {[%clk 0:02:43]}  f5 {[%clk 0:02:11]} 18. Nh4 {[%clk 0:02:37]}  Kf6 {[%clk 0:02:01]} 19. Qh5 {[%clk 0:02:32]}  Bc8 {[%clk 0:01:16]} 20. Qg6+ {[%clk 0:02:27]}  Ke7 {[%clk 0:01:16]} 21. Bxe4 {[%clk 0:02:22]}  fxe4 {[%clk 0:01:15]} 22. Rxe4+ {[%clk 0:02:22]}  Kd7 {[%clk 0:01:15]} 23. Qc6# {[%clk 0:02:21]} 1-0


[Site "https://www.chess.com"]

[Event "Titled Tuesday Blitz January 03 Late 2023"]
[White "Abdisalimov, Abdimalik"]
[Black "Janaszak, Dawid"]
[WhiteFideId "14206323"]
[BlackFideId "1119206"]
[WhiteElo "2492"]
[BlackElo "2316"]
[Result "1-0"]
[Round "03"]
[TimeControl "180+2"]
[Date "2023.01.03"]
[WhiteClock "0:01:57"]
[BlackClock "0:00:45"]

1. d4 {[%clk 0:02:57]}  d5 {[%clk 0:03:00]} 2. c4 {[%clk 0:02:57]}  e6 {[%clk 0:03:00]} 3. Nc3 {[%clk 0:02:56]}  c5 {[%clk 0:03:00]} 4. cxd5 {[%clk 0:02:56]}  exd5 {[%clk 0:03:00]} 5. Nf3 {[%clk 0:02:57]}  Nf6 {[%clk 0:02:59]} 6. g3 {[%clk 0:02:57]}  Nc6 {[%clk 0:02:59]} 7. Bg2 {[%clk 0:02:57]}  Be7 {[%clk 0:02:56]} 8. O-O {[%clk 0:02:57]}  O-O {[%clk 0:02:56]} 9. Bg5 {[%clk 0:02:56]}  cxd4 {[%clk 0:02:54]} 10. Nxd4 {[%clk 0:02:56]}  Qb6 {[%clk 0:02:39]} 11. Nb3 {[%clk 0:02:47]}  d4 {[%clk 0:02:35]} 12. Bxf6 {[%clk 0:02:45]}  Bxf6 {[%clk 0:02:33]} 13. Nd5 {[%clk 0:02:46]}  Qd8 {[%clk 0:02:33]} 14. Rc1 {[%clk 0:02:38]}  Re8 {[%clk 0:02:30]} 15. Re1 {[%clk 0:02:37]}  Bf5 {[%clk 0:02:25]} 16. Nxf6+ {[%clk 0:02:36]}  Qxf6 {[%clk 0:02:25]} 17. Bxc6 {[%clk 0:02:36]}  bxc6 {[%clk 0:02:20]} 18. Qxd4 {[%clk 0:02:37]}  Qh6 {[%clk 0:02:15]} 19. f3 {[%clk 0:02:33]}  a5 {[%clk 0:02:07]} 20. e4 {[%clk 0:02:28]}  Rad8 {[%clk 0:01:52]} 21. Qe3 {[%clk 0:02:28]}  Qh3 {[%clk 0:01:28]} 22. Nxa5 {[%clk 0:02:19]}  h5 {[%clk 0:01:23]} 23. Nxc6 {[%clk 0:02:18]}  Ra8 {[%clk 0:01:16]} 24. a3 {[%clk 0:02:10]}  Re6 {[%clk 0:00:58]} 25. Nd4 {[%clk 0:02:10]}  h4 {[%clk 0:00:53]} 26. Nxf5 {[%clk 0:02:09]}  hxg3 {[%clk 0:00:50]} 27. hxg3 {[%clk 0:02:08]}  Rg6 {[%clk 0:00:50]} 28. Qf4 {[%clk 0:01:58]}  Re8 {[%clk 0:00:45]} 29. Qh4 {[%clk 0:01:57]} 1-0


[Site "https://www.chess.com"]

[Event "Titled Tuesday Blitz January 03 Late 2023"]
[White "Mardov, Dimitar"]
[Black "Erzhanov, Arman"]
[WhiteFideId "30919495"]
[BlackFideId "4138821"]
[WhiteElo "2456"]
[BlackElo "2228"]
[Result "1-0"]
[Round "03"]
[TimeControl "180+2"]
[Date "2023.01.03"]
[WhiteClock "0:00:12"]
[BlackClock "0:00:26"]

1. d4 {[%clk 0:02:59]}  d6 {[%clk 0:02:44]} 2. e4 {[%clk 0:02:54]}  Nf6 {[%clk 0:02:43]} 3. Nc3 {[%clk 0:02:54]}  e5 {[%clk 0:02:42]} 4. Nge2 {[%clk 0:02:54]}  c6 {[%clk 0:02:34]} 5. g3 {[%clk 0:02:53]}  Be7 {[%clk 0:02:31]} 6. Bg2 {[%clk 0:02:54]}  b5 {[%clk 0:02:29]} 7. a3 {[%clk 0:02:50]}  Nbd7 {[%clk 0:02:26]} 8. O-O {[%clk 0:02:50]}  O-O {[%clk 0:02:24]} 9. h3 {[%clk 0:02:48]}  Bb7 {[%clk 0:02:20]} 10. Be3 {[%clk 0:02:48]}  a5 {[%clk 0:02:17]} 11. Qd2 {[%clk 0:02:41]}  b4 {[%clk 0:02:15]} 12. axb4 {[%clk 0:02:42]}  axb4 {[%clk 0:02:14]} 13. Na4 {[%clk 0:02:40]}  exd4 {[%clk 0:02:12]} 14. Nxd4 {[%clk 0:02:03]}  c5 {[%clk 0:02:13]} 15. Nf5 {[%clk 0:02:02]}  Nxe4 {[%clk 0:02:11]} 16. Qe2 {[%clk 0:01:47]}  g6 {[%clk 0:02:04]} 17. Nxe7+ {[%clk 0:01:32]}  Qxe7 {[%clk 0:02:04]} 18. Bh6 {[%clk 0:01:32]}  Rfe8 {[%clk 0:02:03]} 19. Rfe1 {[%clk 0:01:14]}  Qf6 {[%clk 0:02:00]} 20. f3 {[%clk 0:00:48]}  Qd4+ {[%clk 0:01:35]} 21. Kh2 {[%clk 0:00:43]}  Nef6 {[%clk 0:01:31]} 22. Qb5 {[%clk 0:00:42]}  Bd5 {[%clk 0:01:28]} 23. c3 {[%clk 0:00:27]}  Rxe1 {[%clk 0:01:05]} 24. cxd4 {[%clk 0:00:25]}  Rxa1 {[%clk 0:01:06]} 25. dxc5 {[%clk 0:00:16]}  R1xa4 {[%clk 0:01:00]} 26. c6 {[%clk 0:00:16]}  Ne5 {[%clk 0:00:45]} 27. c7 {[%clk 0:00:14]}  Be6 {[%clk 0:00:44]} 28. Qb8+ {[%clk 0:00:12]}  Ne8 {[%clk 0:00:40]} 29. f4 {[%clk 0:00:12]}  Rxb8 {[%clk 0:00:26]} 30. cxb8=Q {[%clk 0:00:12]}  Bd7 {[%clk 0:00:26]} 31. fxe5 {[%clk 0:00:11]}  dxe5 {[%clk 0:00:26]} 32. Qxe5 {[%clk 0:00:12]}  b3 {[%clk 0:00:26]} 33. Qe7 {[%clk 0:00:12]} 1-0


[Site "https://www.chess.com"]

[Event "Titled Tuesday Blitz January 03 Late 2023"]
[White "Kravtsiv, Martyn"]
[Black "Sztokbant, Bernardo Vainzoff"]
[WhiteFideId "14113147"]
[BlackFideId "2115956"]
[WhiteElo "2598"]
[BlackElo "2213"]
[Result "1-0"]
[Round "03"]
[TimeControl "180+2"]
[Date "2023.01.03"]
[WhiteClock "0:01:00"]
[BlackClock "0:00:32"]

1. e4 {[%clk 0:03:00]}  c5 {[%clk 0:03:00]} 2. Nf3 {[%clk 0:03:00]}  d6 {[%clk 0:02:59]} 3. Bb5+ {[%clk 0:03:00]}  Bd7 {[%clk 0:02:59]} 4. Bxd7+ {[%clk 0:02:59]}  Qxd7 {[%clk 0:03:00]} 5. c4 {[%clk 0:02:58]}  Nc6 {[%clk 0:02:54]} 6. Nc3 {[%clk 0:02:57]}  g6 {[%clk 0:02:54]} 7. d4 {[%clk 0:02:57]}  cxd4 {[%clk 0:02:55]} 8. Nxd4 {[%clk 0:02:56]}  Bg7 {[%clk 0:02:55]} 9. Be3 {[%clk 0:02:55]}  Nf6 {[%clk 0:02:55]} 10. f3 {[%clk 0:02:55]}  O-O {[%clk 0:02:55]} 11. O-O {[%clk 0:02:55]}  Rac8 {[%clk 0:02:55]} 12. b3 {[%clk 0:02:53]}  a6 {[%clk 0:02:49]} 13. Qd3 {[%clk 0:02:53]}  Qc7 {[%clk 0:02:46]} 14. Rac1 {[%clk 0:02:50]}  Nxd4 {[%clk 0:02:45]} 15. Bxd4 {[%clk 0:02:49]}  Qa5 {[%clk 0:02:44]} 16. Kh1 {[%clk 0:02:40]}  Rfe8 {[%clk 0:02:44]} 17. Rf2 {[%clk 0:02:30]}  b5 {[%clk 0:02:43]} 18. cxb5 {[%clk 0:02:16]}  axb5 {[%clk 0:02:43]} 19. Rfc2 {[%clk 0:02:16]}  b4 {[%clk 0:02:34]} 20. Bxf6 {[%clk 0:02:13]}  bxc3 {[%clk 0:02:15]} 21. Bxg7 {[%clk 0:02:12]}  Kxg7 {[%clk 0:02:16]} 22. Rxc3 {[%clk 0:02:12]}  Rxc3 {[%clk 0:02:16]} 23. Qxc3+ {[%clk 0:02:12]}  Qxc3 {[%clk 0:02:12]} 24. Rxc3 {[%clk 0:02:13]}  Ra8 {[%clk 0:02:11]} 25. Rc2 {[%clk 0:02:14]}  Kf6 {[%clk 0:02:10]} 26. Kg1 {[%clk 0:02:13]}  Ke5 {[%clk 0:02:10]} 27. Kf2 {[%clk 0:02:14]}  Kd4 {[%clk 0:02:10]} 28. Ke2 {[%clk 0:02:12]}  Ra3 {[%clk 0:02:08]} 29. Kd2 {[%clk 0:02:06]}  e6 {[%clk 0:02:07]} 30. Kc1 {[%clk 0:01:58]}  d5 {[%clk 0:02:07]} 31. Kb2 {[%clk 0:01:57]}  Ra7 {[%clk 0:02:06]} 32. exd5 {[%clk 0:01:55]}  exd5 {[%clk 0:02:07]} 33. a4 {[%clk 0:01:55]}  Ke3 {[%clk 0:02:04]} 34. Rc3+ {[%clk 0:01:44]}  Ke2 {[%clk 0:01:59]} 35. Rc2+ {[%clk 0:01:43]}  Ke3 {[%clk 0:01:59]} 36. Rc8 {[%clk 0:01:36]}  d4 {[%clk 0:01:53]} 37. Re8+ {[%clk 0:01:22]}  Kf2 {[%clk 0:01:48]} 38. Rd8 {[%clk 0:01:21]}  Ke3 {[%clk 0:01:46]} 39. Ka3 {[%clk 0:01:21]}  d3 {[%clk 0:01:46]} 40. b4 {[%clk 0:01:22]}  d2 {[%clk 0:01:43]} 41. b5 {[%clk 0:01:22]}  Ra8 {[%clk 0:01:41]} 42. Rd7 {[%clk 0:01:16]}  Ra7 {[%clk 0:01:39]} 43. Rd6 {[%clk 0:01:12]}  Ke2 {[%clk 0:01:33]} 44. Kb4 {[%clk 0:01:11]}  d1=Q {[%clk 0:01:26]} 45. Rxd1 {[%clk 0:01:11]}  Kxd1 {[%clk 0:01:27]} 46. b6 {[%clk 0:01:11]}  Ra8 {[%clk 0:01:18]} 47. a5 {[%clk 0:01:10]}  Rc8 {[%clk 0:00:48]} 48. a6 {[%clk 0:01:06]}  Rc2 {[%clk 0:00:39]} 49. a7 {[%clk 0:01:01]}  Rb2+ {[%clk 0:00:37]} 50. Kc5 {[%clk 0:01:01]}  Ra2 {[%clk 0:00:35]} 51. Kc6 {[%clk 0:01:00]}  Ke1 {[%clk 0:00:35]} 52. Kb7 {[%clk 0:01:01]}  Kf2 {[%clk 0:00:32]} 53. a8=Q {[%clk 0:01:00]} 1-0


[Site "https://www.chess.com"]

[Event "Titled Tuesday Blitz January 03 Late 2023"]
[White "Slade, Theodore"]
[Black "Mahdavi, Reza"]
[WhiteFideId "426547"]
[BlackFideId "12595926"]
[WhiteElo "1995"]
[BlackElo "2339"]
[Result "1-0"]
[Round "03"]
[TimeControl "180+2"]
[Date "2023.01.03"]
[WhiteClock "0:01:31"]
[BlackClock "0:00:19"]

1. d4 {[%clk 0:03:00]}  Nf6 {[%clk 0:02:56]} 2. c4 {[%clk 0:03:01]}  g6 {[%clk 0:02:56]} 3. Nc3 {[%clk 0:03:01]}  Bg7 {[%clk 0:02:57]} 4. e4 {[%clk 0:03:01]}  d6 {[%clk 0:02:58]} 5. Nf3 {[%clk 0:03:02]}  O-O {[%clk 0:02:59]} 6. Be2 {[%clk 0:03:02]}  e5 {[%clk 0:03:00]} 7. Be3 {[%clk 0:03:03]}  Ng4 {[%clk 0:02:29]} 8. Bg5 {[%clk 0:03:03]}  f6 {[%clk 0:02:27]} 9. Bh4 {[%clk 0:03:03]}  Nc6 {[%clk 0:01:25]} 10. O-O {[%clk 0:03:03]}  Kh8 {[%clk 0:01:04]} 11. d5 {[%clk 0:03:02]}  Ne7 {[%clk 0:01:04]} 12. Ne1 {[%clk 0:02:59]}  Nh6 {[%clk 0:01:02]} 13. f3 {[%clk 0:02:57]}  g5 {[%clk 0:00:56]} 14. Bf2 {[%clk 0:02:57]}  f5 {[%clk 0:00:56]} 15. c5 {[%clk 0:02:50]}  f4 {[%clk 0:00:55]} 16. cxd6 {[%clk 0:02:50]}  cxd6 {[%clk 0:00:56]} 17. Rc1 {[%clk 0:02:49]}  a6 {[%clk 0:00:53]} 18. Na4 {[%clk 0:02:48]}  Nhg8 {[%clk 0:00:50]} 19. Nb6 {[%clk 0:02:47]}  Rb8 {[%clk 0:00:50]} 20. Nxc8 {[%clk 0:02:47]}  Rxc8 {[%clk 0:00:51]} 21. Nd3 {[%clk 0:02:36]}  Nf6 {[%clk 0:00:50]} 22. Rxc8 {[%clk 0:02:27]}  Qxc8 {[%clk 0:00:50]} 23. Qa4 {[%clk 0:02:20]}  b5 {[%clk 0:00:49]} 24. Qa3 {[%clk 0:02:13]}  Rd8 {[%clk 0:00:45]} 25. Rc1 {[%clk 0:02:12]}  Qb7 {[%clk 0:00:44]} 26. Qa5 {[%clk 0:02:05]}  Rc8 {[%clk 0:00:41]} 27. Rxc8+ {[%clk 0:02:05]}  Qxc8 {[%clk 0:00:42]} 28. Qc3 {[%clk 0:02:05]}  Qd7 {[%clk 0:00:39]} 29. Nb4 {[%clk 0:01:59]}  g4 {[%clk 0:00:36]} 30. Nxa6 {[%clk 0:01:57]}  h5 {[%clk 0:00:28]} 31. Qc7 {[%clk 0:01:52]}  Qe8 {[%clk 0:00:28]} 32. Qxd6 {[%clk 0:01:46]}  Ng6 {[%clk 0:00:29]} 33. Qb8 {[%clk 0:01:43]}  Bh6 {[%clk 0:00:19]} 34. d6 {[%clk 0:01:37]}  g3 {[%clk 0:00:16]} 35. hxg3 {[%clk 0:01:34]}  fxg3 {[%clk 0:00:17]} 36. Bxg3 {[%clk 0:01:33]}  Be3+ {[%clk 0:00:17]} 37. Bf2 {[%clk 0:01:31]}  Bxf2+ {[%clk 0:00:18]} 38. Kxf2 {[%clk 0:01:32]}  Nf4 {[%clk 0:00:19]} 39. Qxe8+ {[%clk 0:01:30]}  Nxe8 {[%clk 0:00:19]} 40. d7 {[%clk 0:01:31]} 1-0


[Site "https://www.chess.com"]